fUSD/lending_fUSD_20260218
["ID","MTS","AMOUNT","RATE_DAILY","PERIOD"]
[405926019,1771419045290,-976.2,0.00013698,2]
[405926021,1771419045300,-976.28011377,0.00013698,2]
[405926023,1771419045309,-500.0,0.00013698,2]
[405926024,1771419045319,-500.0,0.00013698,2]
[405926025,1771419045328,-500.0,0.00013698,2]
[405926026,1771419045337,-500.0,0.00013698,2]
[405926027,1771419045346,-500.0,0.00013698,2]
[405926028,1771419045356,-500.0,0.00013698,2]
[405926029,1771419045365,-500.0,0.00013698,2]
[405926030,1771419045375,-500.0,0.00013698,2]
[405926031,1771419045384,-500.0,0.00013698,2]
[405926032,1771419045393,-500.0,0.00013698,2]
[405926033,1771419045402,-500.0,0.00013698,2]
[405926034,1771419045412,-500.0,0.00013698,2]
[405926035,1771419045421,-500.0,0.00013698,2]
[405926036,1771419045431,-500.0,0.00013698,2]
[405926037,1771419045441,-500.0,0.00013698,2]
[405926038,1771419045451,-412.8162274,0.00013698,2]
[405926040,1771419045460,-500.0,0.00013698,2]
[405926042,1771419045470,-500.0,0.00013698,2]
[405926044,1771419045479,-500.0,0.00013698,2]
[405926045,1771419045488,-500.0,0.00013698,2]
[405926047,1771419045498,-500.0,0.00013698,2]
[405926049,1771419045507,-500.0,0.00013698,2]
[405926051,1771419045516,-500.0,0.00013698,2]
[405926053,1771419045525,-513.57,0.00013698,2]
[405926055,1771419045535,-500.0,0.00013698,2]
[405926057,1771419045544,-500.0,0.00013698,2]
[405926059,1771419045553,-762.05,0.00013698,2]
[405926061,1771419045562,-753.26,0.00013699,2]
[405926063,1771419045572,-500.0,0.00013699,2]
[405926064,1771419045582,-500.0,0.00013699,2]
[405926065,1771419045591,-500.0,0.00013699,2]
[405926066,1771419045600,-500.0,0.00013699,2]
[405926067,1771419045610,-500.0,0.00013699,2]
[405926068,1771419045619,-500.0,0.00013699,2]
[405926069,1771419045628,-500.0,0.00013699,2]
[405926070,1771419045637,-500.0,0.00013699,2]
[405926071,1771419045646,-500.0,0.00013699,2]
[405926072,1771419045655,-500.0,0.00013699,2]
[405926073,1771419045665,-576.27008267,0.00013699,2]
[405926074,1771419045675,-500.0,0.00013699,2]
[405926075,1771419045684,-160.58503845,0.00013699,2]
[405926076,1771419045695,-561.22608734,0.00013699,2]
[405926077,1771419045707,-500.0,0.00013699,2]
[405926078,1771419045716,-505.80737732,0.00013699,2]
[405926079,1771419045725,-500.0,0.00013699,2]
[405926081,1771419045735,-500.0,0.00013699,2]
[405926083,1771419045743,-500.0,0.00013699,2]
[405926085,1771419045753,-500.0,0.00013699,2]
[405926087,1771419045762,-514.3981141,0.00013699,2]
[405926089,1771419045771,-161.63276851,0.00013699,2]
[405926091,1771419045781,-569.93791735,0.00013699,2]
[405926093,1771419045790,-310.22535934,0.00013699,2]
[405926095,1771419045800,-500.0,0.00013699,2]
[405926097,1771419045809,-500.0,0.00013699,2]
[405926099,1771419045818,-616.51234447,0.00013699,2]
[405926101,1771419045827,-500.0,0.00013699,2]
[405926103,1771419045837,-500.0,0.00013699,2]
[405926105,1771419045846,-500.0,0.00013699,2]
[405926107,1771419045855,-500.0,0.00013699,2]
[405926109,1771419045864,-501.41908298,0.00013699,2]
[405926111,1771419045873,-500.61236308,0.00013699,2]
[405926113,1771419045882,-500.0,0.00013699,2]
[405926115,1771419045892,-500.0,0.00013699,2]
[405926117,1771419045901,-523.76939094,0.00013699,2]
[405926119,1771419045911,-161.91543502,0.00013699,2]
[405926121,1771419045920,-500.0,0.00013699,2]
[405926123,1771419045932,-500.0,0.00013699,2]
[405926125,1771419045942,-500.0,0.00013699,2]
[405926127,1771419045951,-500.0,0.00013699,2]
[405926129,1771419045961,-162.44090576,0.00013699,2]
[405926131,1771419045971,-500.0,0.00013699,2]
[405926133,1771419045980,-163.17658841,0.00013699,2]
[405926135,1771419045989,-160.58306572,0.00013699,2]
[405926137,1771419045998,-161.06774125,0.00013699,2]
[405926139,1771419046010,-501.28055995,0.00013699,2]
[405926141,1771419046019,-500.0,0.00013699,2]
[405926143,1771419046028,-160.47798963,0.00013699,2]
[405926145,1771419046038,-160.33154335,0.00013699,2]
[405926147,1771419046046,-157.98680662,0.00013699,2]
[405926149,1771419046060,-500.0,0.00013699,2]
[405926151,1771419046069,-160.59858326,0.00013699,2]
[405926153,1771419046079,-500.0,0.00013699,2]
[405926155,1771419046088,-500.0,0.00013699,2]
[405926157,1771419046098,-500.0,0.00013699,2]
[405926159,1771419046107,-377.84784353,0.00013699,2]
[405926161,1771419046116,-500.0,0.00013699,2]
[405926163,1771419046125,-500.0,0.00013699,2]
[405926165,1771419046134,-500.0,0.00013699,2]
[405926167,1771419046144,-500.0,0.00013699,2]
[405926168,1771419046153,-151.49356068,0.00013699,2]
[405926169,1771419046162,-618.68,0.000137,2]
[405926170,1771419046171,-618.68,0.000137,2]
[405926171,1771419046181,-618.68,0.000137,2]
[405926172,1771419046190,-618.68,0.000137,2]
[405926173,1771419046199,-618.68,0.000137,2]
[405926174,1771419046208,-66973.70088072,0.00013706,2]
[405926175,1771419046218,-2251.56583335,0.00013736,2]
[405926176,1771419046227,-400.0,0.000139,5]
[405926177,1771419046236,-5531.0,0.000139,3]
[405926178,1771419046245,-333.11,0.00013996,2]
[405926179,1771419046254,-800.0,0.0001405,2]
[405926180,1771419046263,-800.0,0.0001405,2]
[405926181,1771419046272,-823.61122367,0.0001405,2]
[405926182,1771419046281,-800.0,0.0001405,2]
[405926183,1771419046290,-800.0,0.0001405,2]
[405926185,1771419046299,-800.0,0.0001405,2]
[405926187,1771419046308,-800.0,0.0001405,2]
[405926189,1771419046317,-800.0,0.0001405,2]
[405926190,1771419046326,-800.0,0.0001405,2]
[405926191,1771419046335,-173.41455475,0.0001405,2]
[405926192,1771419046344,-500.0,0.0001405,2]
[405926193,1771419046354,-500.0,0.0001405,2]
[405926194,1771419046362,-500.0,0.0001405,2]
[405926195,1771419046375,-800.0,0.0001405,2]
[405926196,1771419046388,-500.0,0.0001405,2]
[405926197,1771419046400,-800.0,0.0001405,2]
[405926198,1771419046411,-500.0,0.0001405,2]
[405926199,1771419046423,-500.0,0.0001405,2]
[405926200,1771419046434,-800.0,0.0001405,2]
[405926201,1771419046444,-500.0,0.0001405,2]
[405926202,1771419046454,-500.0,0.0001405,2]
[405926203,1771419046464,-800.0,0.0001405,2]
[405926204,1771419046474,-500.0,0.0001405,2]
[405926205,1771419046484,-500.0,0.0001405,2]
[405926206,1771419046494,-392.76826941,0.0001405,2]
[405926207,1771419046505,-800.0,0.0001405,2]
[405926208,1771419046515,-500.0,0.0001405,2]
[405926209,1771419046526,-500.0,0.0001405,2]
[405926210,1771419046537,-500.0,0.0001405,2]
[405926211,1771419046547,-500.0,0.0001405,2]
[405926212,1771419046558,-500.0,0.0001405,2]
[405926213,1771419046569,-500.0,0.0001405,2]
[405926214,1771419046580,-500.0,0.0001405,2]
[405926215,1771419046591,-500.0,0.0001405,2]
[405926216,1771419046602,-500.0,0.0001405,2]
[405926217,1771419046613,-500.0,0.0001405,2]
[405926218,1771419046624,-500.0,0.0001405,2]
[405926219,1771419046635,-500.0,0.0001405,2]
[405926220,1771419046647,-500.0,0.0001405,2]
[405926221,1771419046657,-500.0,0.0001405,2]
[405926222,1771419046667,-500.0,0.0001405,2]
[405926223,1771419046679,-500.0,0.0001405,2]
[405926224,1771419046689,-500.0,0.0001405,2]
[405926225,1771419046699,-500.0,0.0001405,2]
[405926226,1771419046709,-500.0,0.0001405,2]
[405926227,1771419046719,-500.0,0.0001405,2]
[405926228,1771419046729,-500.0,0.0001405,2]
[405926229,1771419046740,-3800.0,0.0001405,2]
[405926230,1771419046751,-500.0,0.0001405,2]
[405926231,1771419046762,-500.0,0.0001405,2]
[405926232,1771419046777,-3800.0,0.0001405,2]
[405926233,1771419046789,-500.0,0.0001405,2]
[405926234,1771419046799,-2200.0,0.0001405,2]
[405926235,1771419046810,-225.89507098,0.0001405,2]
[405926236,1771419046820,-3800.0,0.0001405,2]
[405926237,1771419046831,-500.0,0.0001405,2]
[405926238,1771419046842,-500.0,0.0001405,2]
[405926239,1771419046852,-1600.0,0.0001405,2]
[405926240,1771419046863,-173.61565487,0.0001405,2]
[405926241,1771419046874,-500.0,0.0001405,2]
[405926242,1771419046885,-3800.0,0.0001405,2]
[405926243,1771419046895,-500.0,0.0001405,2]
[405926244,1771419046906,-2200.0,0.0001405,2]
[405926245,1771419046916,-1600.0,0.0001405,2]
[405926246,1771419046927,-500.0,0.0001405,2]
[405926247,1771419046940,-3800.0,0.0001405,2]
[405926248,1771419046951,-2200.0,0.0001405,2]
[405926249,1771419046961,-500.0,0.0001405,2]
[405926250,1771419046972,-1600.0,0.0001405,2]
[405926251,1771419046983,-500.0,0.0001405,2]
[405926252,1771419046994,-3800.0,0.0001405,2]
[405926253,1771419047005,-500.0,0.0001405,2]
[405926254,1771419047016,-2200.0,0.0001405,2]
[405926255,1771419047026,-1600.0,0.0001405,2]
[405926256,1771419047037,-500.0,0.0001405,2]
[405926257,1771419047047,-3800.0,0.0001405,2]
[405926258,1771419047057,-2200.0,0.0001405,2]
[405926259,1771419047068,-500.0,0.0001405,2]
[405926260,1771419047078,-1600.0,0.0001405,2]
[405926261,1771419047088,-500.0,0.0001405,2]
[405926262,1771419047098,-3800.0,0.0001405,2]
[405926263,1771419047109,-2200.0,0.0001405,2]
[405926264,1771419047119,-500.0,0.0001405,2]
[405926265,1771419047130,-1600.0,0.0001405,2]
[405926266,1771419047141,-500.0,0.0001405,2]
[405926267,1771419047153,-3800.0,0.0001405,2]
[405926268,1771419047164,-2200.0,0.0001405,2]
[405926269,1771419047174,-1600.0,0.0001405,2]
[405926270,1771419047185,-500.0,0.0001405,2]
[405926271,1771419047195,-3800.0,0.0001405,2]
[405926272,1771419047205,-2200.0,0.0001405,2]
[405926273,1771419047216,-1600.0,0.0001405,2]
[405926274,1771419047226,-3800.0,0.0001405,2]
[405926275,1771419047237,-2200.0,0.0001405,2]
[405926276,1771419047247,-1600.0,0.0001405,2]
[405926277,1771419047256,-3800.0,0.0001405,2]
[405926278,1771419047266,-2200.0,0.0001405,2]
[405926279,1771419047275,-1600.0,0.0001405,2]
[405926280,1771419047284,-3800.0,0.0001405,2]
[405926281,1771419047295,-2200.0,0.0001405,2]
[405926282,1771419047305,-1600.0,0.0001405,2]
[405926283,1771419047315,-2300.0,0.0001405,2]
[405926284,1771419047326,-500.0,0.0001405,2]
[405926285,1771419047339,-3800.0,0.0001405,2]
[405926286,1771419047350,-322.36321151,0.0001405,2]
[405926287,1771419047361,-746.51063578,0.0001405,2]
[405926288,1771419047372,-2200.0,0.0001405,2]
[405926289,1771419047382,-810.0,0.0001405,2]
[405926290,1771419047391,-6800.0,0.0001405,2]
[405926291,1771419047401,-1600.0,0.0001405,2]
[405926292,1771419047411,-2300.0,0.0001405,2]
[405926293,1771419047420,-500.0,0.0001405,2]
[405926294,1771419047430,-1200.0,0.0001405,2]
[405926295,1771419047441,-3800.0,0.0001405,2]
[405926296,1771419047451,-500.0,0.0001405,2]
[405926297,1771419047462,-2200.0,0.0001405,2]
[405926298,1771419047472,-6800.0,0.0001405,2]
[405926299,1771419047484,-1600.0,0.0001405,2]
[405926300,1771419047495,-2300.0,0.0001405,2]
[405926301,1771419047505,-500.0,0.0001405,2]
[405926302,1771419047515,-1200.0,0.0001405,2]
[405926303,1771419047525,-2200.0,0.0001405,2]
[405926304,1771419047534,-6800.0,0.0001405,2]
[405926305,1771419047544,-1600.0,0.0001405,2]
[405926306,1771419047554,-2300.0,0.0001405,2]
[405926307,1771419047563,-1200.0,0.0001405,2]
[405926308,1771419047573,-2200.0,0.0001405,2]
[405926309,1771419047583,-6800.0,0.0001405,2]
[405926310,1771419047593,-1600.0,0.0001405,2]
[405926311,1771419047602,-2300.0,0.0001405,2]
[405926312,1771419047612,-1200.0,0.0001405,2]
[405926313,1771419047622,-6800.0,0.0001405,2]
[405926314,1771419047631,-2300.0,0.0001405,2]
[405926315,1771419047641,-1200.0,0.0001405,2]
[405926316,1771419047650,-2300.0,0.0001405,2]
[405926317,1771419047660,-483.72863295,0.0001405,2]
[405926318,1771419047670,-1200.0,0.0001405,2]
[405926319,1771419047680,-500.0,0.0001405,2]
[405926320,1771419047690,-514.06442359,0.0001405,2]
[405926321,1771419047700,-6800.0,0.0001405,2]
[405926322,1771419047711,-1200.0,0.0001405,2]
[405926323,1771419047721,-2300.0,0.0001405,2]
[405926324,1771419047731,-500.0,0.0001405,2]
[405926325,1771419047740,-500.0,0.0001405,2]
[405926326,1771419047750,-6800.0,0.0001405,2]
[405926327,1771419047760,-1200.0,0.0001405,2]
[405926328,1771419047771,-500.0,0.0001405,2]
[405926329,1771419047781,-500.0,0.0001405,2]
[405926330,1771419047791,-285.67392356,0.0001405,2]
[405926331,1771419047802,-6800.0,0.0001405,2]
[405926332,1771419047812,-2300.0,0.0001405,2]
[405926333,1771419047823,-1200.0,0.0001405,2]
[405926334,1771419047833,-500.0,0.0001405,2]
[405926335,1771419047844,-500.0,0.0001405,2]
[405926336,1771419047855,-6800.0,0.0001405,2]
[405926337,1771419047865,-2300.0,0.0001405,2]
[405926338,1771419047876,-1200.0,0.0001405,2]
[405926339,1771419047887,-500.0,0.0001405,2]
[405926340,1771419047899,-187.43513762,0.0001405,2]
[405926341,1771419047911,-500.0,0.0001405,2]
[405926342,1771419047922,-6800.0,0.0001405,2]
[405926343,1771419047935,-2300.0,0.0001405,2]
[405926344,1771419047945,-500.0,0.0001405,2]
[405926345,1771419047959,-1200.0,0.0001405,2]
[405926346,1771419047971,-168.70352471,0.0001405,2]
[405926347,1771419047982,-500.0,0.0001405,2]
[405926348,1771419047992,-6800.0,0.0001405,2]
[405926349,1771419048004,-2300.0,0.0001405,2]
[405926350,1771419048014,-500.0,0.0001405,2]
[405926351,1771419048024,-1200.0,0.0001405,2]
[405926352,1771419048034,-500.0,0.0001405,2]
[405926353,1771419048045,-6800.0,0.0001405,2]
[405926354,1771419048056,-2300.0,0.0001405,2]
[405926355,1771419048066,-1200.0,0.0001405,2]
[405926356,1771419048076,-500.0,0.0001405,2]
[405926357,1771419048086,-6800.0,0.0001405,2]
[405926358,1771419048096,-516.74355058,0.0001405,2]
[405926359,1771419048107,-2300.0,0.0001405,2]
[405926360,1771419048117,-1200.0,0.0001405,2]
[405926361,1771419048127,-500.0,0.0001405,2]
[405926362,1771419048137,-202.72821533,0.0001405,2]
[405926363,1771419048147,-500.0,0.0001405,2]
[405926364,1771419048158,-6800.0,0.0001405,2]
[405926365,1771419048168,-1800.0,0.0001405,2]
[405926366,1771419048179,-389.61327066,0.0001405,2]
[405926367,1771419048189,-900.0,0.0001405,2]
[405926368,1771419048201,-500.0,0.0001405,2]
[405926369,1771419048211,-500.0,0.0001405,2]
[405926370,1771419048222,-557.35975036,0.0001405,2]
[405926371,1771419048232,-6800.0,0.0001405,2]
[405926372,1771419048243,-839.81835804,0.0001405,2]
[405926373,1771419048253,-1800.0,0.0001405,2]
[405926374,1771419048263,-900.0,0.0001405,2]
[405926375,1771419048273,-500.0,0.0001405,2]
[405926376,1771419048282,-467.20117357,0.0001405,2]
[405926377,1771419048292,-500.0,0.0001405,2]
[405926378,1771419048302,-500.0,0.0001405,2]
[405926379,1771419048312,-600.0,0.0001405,2]
[405926380,1771419048323,-898.13786328,0.0001405,2]
[405926381,1771419048333,-1800.0,0.0001405,2]
[405926382,1771419048343,-900.0,0.0001405,2]
[405926383,1771419048353,-597.06449526,0.0001405,2]
[405926384,1771419048363,-500.0,0.0001405,2]
[405926385,1771419048373,-500.0,0.0001405,2]
[405926386,1771419048383,-500.0,0.0001405,2]
[405926387,1771419048393,-500.0,0.0001405,2]
[405926388,1771419048404,-600.0,0.0001405,2]
[405926389,1771419048416,-1800.0,0.0001405,2]
[405926390,1771419048426,-900.0,0.0001405,2]
[405926391,1771419048436,-500.0,0.0001405,2]
[405926392,1771419048447,-500.0,0.0001405,2]
[405926393,1771419048456,-600.0,0.0001405,2]
[405926394,1771419048467,-1800.0,0.0001405,2]
[405926395,1771419048476,-618.7640347,0.0001405,2]
[405926396,1771419048487,-900.0,0.0001405,2]
[405926397,1771419048497,-500.0,0.0001405,2]
[405926398,1771419048507,-600.0,0.0001405,2]
[405926399,1771419048516,-1800.0,0.0001405,2]
[405926400,1771419048529,-900.0,0.0001405,2]
[405926401,1771419048539,-223.32304254,0.0001405,2]
[405926402,1771419048549,-531.83173779,0.0001405,2]
[405926403,1771419048562,-900.0,0.0001405,2]
[405926404,1771419048572,-600.0,0.0001405,2]
[405926405,1771419048582,-1800.0,0.0001405,2]
[405926406,1771419048592,-900.0,0.0001405,2]
[405926407,1771419048602,-600.0,0.0001405,2]
[405926408,1771419048611,-1800.0,0.0001405,2]
[405926409,1771419048621,-900.0,0.0001405,2]
[405926410,1771419048631,-600.0,0.0001405,2]
[405926411,1771419048641,-1800.0,0.0001405,2]
[405926412,1771419048651,-900.0,0.0001405,2]
[405926413,1771419048661,-600.0,0.0001405,2]
[405926414,1771419048671,-1800.0,0.0001405,2]
[405926415,1771419048681,-900.0,0.0001405,2]
[405926416,1771419048691,-600.0,0.0001405,2]
[405926417,1771419048701,-1800.0,0.0001405,2]
[405926418,1771419048711,-900.0,0.0001405,2]
[405926419,1771419048722,-600.0,0.0001405,2]
[405926420,1771419048732,-1800.0,0.0001405,2]
[405926421,1771419048742,-900.0,0.0001405,2]
[405926422,1771419048752,-1800.0,0.0001405,2]
[405926423,1771419048762,-900.0,0.0001405,2]
[405926424,1771419048772,-600.0,0.0001405,2]
[405926425,1771419048782,-1800.0,0.0001405,2]
[405926426,1771419048793,-600.0,0.0001405,2]
[405926427,1771419048803,-1800.0,0.0001405,2]
[405926428,1771419048813,-600.0,0.0001405,2]
[405926429,1771419048823,-500.0,0.0001405,2]
[405926430,1771419048833,-500.0,0.0001405,2]
[405926431,1771419048843,-500.0,0.0001405,2]
[405926432,1771419048853,-500.0,0.0001405,2]
[405926433,1771419048863,-500.0,0.0001405,2]
[405926434,1771419048872,-500.0,0.0001405,2]
[405926435,1771419048883,-500.0,0.0001405,2]
[405926436,1771419048893,-500.0,0.0001405,2]
[405926437,1771419048902,-500.0,0.0001405,2]
[405926438,1771419048912,-500.0,0.0001405,2]
[405926439,1771419048922,-500.0,0.0001405,2]
[405926440,1771419048933,-500.0,0.0001405,2]
[405926441,1771419048945,-500.0,0.0001405,2]
[405926442,1771419048955,-275.55172821,0.0001405,2]
[405926443,1771419048964,-765.60339842,0.0001405,2]
[405926444,1771419048975,-1000.0,0.00014247,2]
[405926445,1771419048985,-1000.0,0.00014247,2]
[405926446,1771419048995,-1000.0,0.00014247,2]
[405926447,1771419049007,-1000.0,0.00014247,2]
[405926448,1771419049017,-1000.0,0.00014247,2]
[405926449,1771419049027,-1000.0,0.00014247,2]
[405926450,1771419049037,-1000.0,0.00014247,2]
[405926451,1771419049047,-1067.47328951,0.00014247,2]
[405926452,1771419049057,-1000.0,0.00014247,2]
[405926453,1771419049067,-1000.0,0.00014247,2]
[405926454,1771419049077,-1000.0,0.00014247,2]
[405926455,1771419049086,-1000.0,0.00014247,2]
[405926456,1771419049096,-1000.0,0.00014247,2]
[405926457,1771419049107,-1003.65271303,0.00014247,2]
[405926458,1771419049116,-1000.0,0.00014247,2]
[405926459,1771419049126,-1000.0,0.00014247,2]
[405926460,1771419049136,-1000.0,0.00014247,2]
[405926461,1771419049147,-336.6867508,0.00014247,2]
[405926462,1771419049157,-1000.0,0.00014247,2]
[405926463,1771419049167,-1000.0,0.00014247,2]
[405926464,1771419049177,-1000.0,0.00014247,2]
[405926465,1771419049187,-501.83349553,0.00014247,2]
[405926466,1771419049197,-1000.0,0.00014247,2]
[405926467,1771419049208,-1000.0,0.00014247,2]
[405926468,1771419049218,-1000.0,0.00014247,2]
[405926469,1771419049228,-1000.0,0.00014247,2]
[405926470,1771419049238,-1000.0,0.00014247,2]
[405926471,1771419049247,-1000.0,0.00014247,2]
[405926472,1771419049258,-1001.64879923,0.00014247,2]
[405926473,1771419049268,-1000.0,0.00014247,2]
[405926474,1771419049278,-1000.0,0.00014247,2]
[405926475,1771419049287,-552.89419638,0.00014247,2]
[405926476,1771419049297,-1000.0,0.00014247,2]
[405926477,1771419049307,-561.93408671,0.00014247,2]
[405926478,1771419049316,-1000.0,0.00014247,2]
[405926479,1771419049326,-503.21395664,0.00014247,2]
[405926480,1771419049336,-1000.0,0.00014247,2]
[405926481,1771419049345,-1000.0,0.00014247,2]
[405926482,1771419049355,-5531.0,0.000145,5]
[405926483,1771419049365,-1355.0,0.00014656,2]
[405926484,1771419049375,-524.16891164,0.00014795,2]
[405926485,1771419049385,-1000.0,0.00014795,2]
[405926486,1771419049395,-187.09841863,0.00014795,2]
[405926487,1771419049404,-1500.0,0.00014795,2]
[405926488,1771419049414,-1500.0,0.00014795,2]
[405926489,1771419049424,-500.0,0.00014795,2]
[405926490,1771419049435,-1500.0,0.00014795,2]
[405926491,1771419049445,-508.58168582,0.00014795,2]
[405926492,1771419049454,-512.09053139,0.00014795,2]
[405926493,1771419049464,-477.33821748,0.00014795,2]
[405926494,1771419049474,-1500.0,0.00014795,2]
[405926495,1771419049484,-506.41325356,0.00014795,2]
[405926496,1771419049493,-1500.0,0.00014795,2]
[405926497,1771419049502,-1500.0,0.00014795,2]
[405926498,1771419049512,-1037.4625703,0.00014795,2]
[405926499,1771419049522,-900.0,0.00015068,2]
[405926500,1771419049532,-2251.56583335,0.00015124,2]
[405926501,1771419049542,-174.42,0.00015193,2]
[405926502,1771419049552,-1960.08113192,0.00015342,2]
[405926503,1771419049562,-2000.0,0.00015342,2]
[405926504,1771419049571,-2000.0,0.00015342,2]
[405926505,1771419049581,-1465.77482029,0.00015342,2]
[405926506,1771419049591,-1721.59968024,0.00015342,2]
[405926507,1771419049600,-605.03701467,0.00015342,2]
[405926508,1771419049609,-552.47642339,0.00015596,7]
[405926509,1771419049620,-162.74,0.00015652,2]
[405926510,1771419049963,-1164.0,0.00015652,2]
[405926511,1771419049974,-3534.442,0.00015652,2]
[405926512,1771419049983,-1351.534,0.00015652,2]
[405926513,1771419049992,-638.503,0.00015652,2]
[405926514,1771419050002,-267.79,0.00015652,2]
[405926515,1771419050012,-1275.0,0.00015652,2]
[405926516,1771419050021,-935.257,0.00015652,2]
[405926517,1771419050030,-412.0,0.00015652,2]
[405926518,1771419050039,-25949.63612918,0.00015745,2]
[405926519,1771419050049,-482.75960727,0.00015869,2]
[405926520,1771419050058,-1783.85919121,0.0001589,2]
[405926521,1771419050067,-801.75028282,0.0001589,2]
[405926522,1771419050076,-507.0,0.0001605,2]
[405926523,1771419050086,-348.354952,0.00016101,7]
[405926524,1771419050096,-482.75960727,0.00016265,2]
[405926525,1771419050104,-2836.0,0.000164,2]
[405926526,1771419050113,-307.2,0.00016438,2]
[405926527,1771419050122,-841.0,0.00016438,2]
[405926528,1771419050131,-900.0,0.00016438,2]
[405926529,1771419050141,-220.89,0.00016468,2]
[405926530,1771419050150,-265.07,0.0001649,2]
[405926531,1771419050159,-2251.56583335,0.00016512,2]
[405926532,1771419050168,-333.11,0.00016587,2]
[405926533,1771419050177,-482.75960727,0.00016662,2]
[405926534,1771419050186,-841.0,0.00016712,2]
[405926535,1771419050196,-167.38,0.00016712,2]
[405926536,1771419050205,-160.0,0.0001672,2]
[405926537,1771419050214,-2836.0,0.0001672,2]
[405926538,1771419050223,-200.0,0.00016792,2]
[405926539,1771419050233,-841.0,0.00016986,2]
[405926540,1771419050242,-507.0,0.00016991,2]
[405926541,1771419050251,-2836.0,0.0001704,2]
[405926542,1771419050261,-482.75960727,0.00017059,2]
[405926543,1771419050270,-277.35679052,0.00017099,2]
[405926544,1771419050279,-350.0,0.00017247,2]
[405926545,1771419050288,-841.0,0.0001726,2]
[405926546,1771419050297,-160.0,0.0001736,2]
[405926547,1771419050306,-2836.0,0.0001736,2]
[405926548,1771419050316,-984.0,0.0001736,2]
[405926549,1771419050325,-350.0,0.000175,2]
[405926550,1771419050334,-841.0,0.00017534,2]
[405926551,1771419050343,-842.0,0.00017544,2]
[405926552,1771419050352,-174.42,0.00017596,2]
[405926553,1771419050362,-47671.0,0.00017613,2]
[405926554,1771419050372,-287.61899177,0.00017647,2]
[405926555,1771419050382,-350.0,0.00017651,2]
[405926556,1771419050391,-160.0,0.0001768,2]
[405926557,1771419050404,-2836.0,0.0001768,2]
[405926558,1771419050414,-350.0,0.00017698,2]
[405926559,1771419050423,-400.0,0.000177,6]
[405926560,1771419050432,-5000.0,0.000178,2]
[405926561,1771419050443,-400.0,0.000178,6]
[405926562,1771419050453,-500.0,0.00017808,2]
[405926563,1771419050462,-841.0,0.00017808,2]
[405926564,1771419050471,-800.0,0.00017808,2]
[405926565,1771419050480,-1999.0,0.00017808,2]
[405926566,1771419050490,-250.0,0.00017808,20]
[405926567,1771419050499,-250.0,0.00017808,20]
[405926568,1771419050509,-250.0,0.00017808,20]
[405926569,1771419050518,-250.0,0.00017808,20]
[405926570,1771419050528,-250.0,0.00017808,20]
[405926571,1771419050537,-250.0,0.00017808,20]
[405926572,1771419050547,-250.0,0.00017808,20]
[405926573,1771419050556,-175.581631,0.00017808,20]
[405926574,1771419050565,-2000.0,0.0001782,2]
[405926575,1771419050574,-2000.0,0.0001782,2]
[405926576,1771419050583,-200.0,0.00017856,2]
[405926577,1771419050592,-500.0,0.00017863,2]
[405926578,1771419050602,-951.9112,0.000179,2]
[405926579,1771419050611,-4588.3903,0.000179,2]